fUSD/lending_fUSD_20240615
["ID","MTS","AMOUNT","RATE_DAILY","PERIOD"]
[329516962,1718411439028,-500.0,0.00021917,2]
[329516963,1718411439040,-500.0,0.00021917,2]
[329516964,1718411439136,-37.52691303,0.00021917,2]
[329516965,1718411439333,-346.53616094,0.00021917,2]
[329516966,1718411439381,-115.93692603,0.00021917,2]
[329516967,1718411439393,-340.00829844,0.00021917,2]
[329516968,1718411439410,-159.99170156,0.00021917,2]
[329516969,1718411439453,-298.67226549,0.00021917,2]
[329516971,1718411439492,-201.32773451,0.00021917,2]
[329516972,1718411439513,-207.4255053,0.00021917,2]
[329516974,1718411439528,-292.5744947,0.00021917,2]
[329516975,1718411439548,-491.48,0.00021917,2]
[329516976,1718411439574,-500.0,0.00021917,2]
[329516977,1718411439585,-33.00915786,0.00021917,2]
[329516978,1718411439598,-466.99084214,0.00021917,2]
[329516979,1718411439613,-197.58643449,0.00021917,2]
[329516980,1718411439722,-302.41356551,0.00021917,2]
[329516981,1718411439824,-500.0,0.00021917,2]
[329516982,1718411439890,-500.0,0.00021917,2]
[329516983,1718411439919,-500.0,0.00021917,2]
[329516984,1718411440017,-500.0,0.00021917,2]
[329516985,1718411440030,-500.0,0.00021917,2]
[329516986,1718411440044,-251.19648407,0.00021917,2]
[329516987,1718411440074,-500.0,0.00021917,2]
[329516988,1718411440090,-500.0,0.00021917,2]
[329516989,1718411440120,-500.0,0.00021917,2]
[329516990,1718411440176,-500.0,0.00021917,2]
[329516991,1718411440188,-500.0,0.00021917,2]
[329516992,1718411440244,-500.0,0.00021917,2]
[329516993,1718411440284,-321.6,0.00021917,2]
[329516994,1718411440340,-116.89813469,0.00021917,2]
[329516995,1718411440378,-383.10186531,0.00021917,2]
[329516996,1718411440404,-500.0,0.00021917,2]
[329516997,1718411440448,-500.0,0.00021917,2]
[329516998,1718411440461,-500.0,0.00021917,2]
[329516999,1718411440499,-500.0,0.00021917,2]
[329517000,1718411440542,-500.0,0.00021917,2]
[329517002,1718411440602,-250.0,0.00021918,2]
[329517003,1718411440657,-759.35,0.00021918,2]
[329517004,1718411440725,-1719.121407,0.00021927,2]
[329517005,1718411440776,-601.41403316,0.00021927,2]
[329517006,1718411440793,-933.54157347,0.00021927,2]
[329517007,1718411440845,-444.81598637,0.00021927,2]
[329517008,1718411440857,-361.96,0.00021984,2]
[329517009,1718411440877,-921.84774447,0.00022,10]
[329517040,1718411443118,-1888.89310926,0.00022,10]
[329517041,1718411443142,-207.0327,0.00022091,2]
[329517042,1718411443156,-5601.29719986,0.00022091,2]
[329517043,1718411443174,-785.92464769,0.00022091,2]
[329517046,1718411443236,-669.42707453,0.00022091,2]
[329517049,1718411443279,-2290.18234894,0.00022091,2]
[329517051,1718411443311,-2482.14232898,0.00022091,2]
[329517055,1718411443401,-215.05,0.00022181,2]
[329517057,1718411443418,-500.0,0.00022189,3]
[329517059,1718411443452,-500.0,0.00022189,3]
[329517060,1718411443465,-500.0,0.00022189,3]
[329517062,1718411443480,-667.66,0.00022189,3]
[329517063,1718411443491,-523.21,0.00022189,3]
[329517065,1718411443506,-540.91,0.00022189,3]
[329517067,1718411443545,-500.0,0.00022189,3]
[329517068,1718411443565,-500.0,0.00022189,3]
[329517070,1718411443593,-389.74324931,0.00022189,3]
[329517072,1718411443669,-110.25675069,0.00022189,3]
[329517073,1718411443704,-504.22106467,0.00022189,3]
[329517076,1718411443732,-500.0,0.00022189,3]
[329517079,1718411443804,-500.0,0.00022189,3]
[329517080,1718411443821,-500.0,0.00022189,3]
[329517082,1718411443833,-500.0,0.00022189,3]
[329517085,1718411443924,-500.0,0.00022189,3]
[329517088,1718411444024,-271.49171859,0.00022189,3]
[329517089,1718411444128,-1638.81828141,0.00022189,3]
[329517090,1718411444168,-500.0,0.00022189,3]
[329517091,1718411444181,-500.0,0.00022189,3]
[329517092,1718411444228,-500.0,0.00022189,3]
[329517093,1718411444244,-1441.02,0.00022189,3]
[329517094,1718411444270,-500.0,0.00022189,3]
[329517095,1718411444284,-500.0,0.00022189,3]
[329517096,1718411444304,-573.99071813,0.00022189,3]
[329517097,1718411444314,-500.0,0.00022189,3]
[329517098,1718411444326,-500.0,0.00022189,3]
[329517099,1718411444336,-7546.10929998,0.0002219,2]
[329517101,1718411444349,-500.0,0.0002219,3]
[329517104,1718411444364,-500.0,0.0002219,3]
[329517106,1718411444384,-500.0,0.0002219,3]
[329517109,1718411444402,-500.0,0.0002219,3]
[329517110,1718411444413,-500.0,0.0002219,3]
[329517112,1718411444442,-500.0,0.0002219,3]
[329517113,1718411444474,-548.17,0.0002219,3]
[329517114,1718411444492,-500.0,0.0002219,3]
[329517115,1718411444517,-500.0,0.0002219,3]
[329517116,1718411444527,-410.39,0.0002219,3]
[329517117,1718411444538,-500.0,0.0002219,3]
[329517118,1718411444580,-500.0,0.0002219,3]
[329517119,1718411444605,-514.96,0.0002219,3]
[329517120,1718411444617,-500.0,0.0002219,3]
[329517121,1718411444633,-500.0,0.0002219,3]
[329517122,1718411444668,-500.0,0.0002219,3]
[329517123,1718411444755,-500.0,0.0002219,3]
[329517124,1718411444803,-500.0,0.0002219,3]
[329517125,1718411444847,-500.0,0.0002219,3]
[329517126,1718411444892,-500.0,0.0002219,3]
[329517127,1718411444907,-155.08993262,0.0002219,3]
[329517128,1718411444930,-500.0,0.0002219,3]
[329517129,1718411444948,-500.0,0.0002219,3]
[329517130,1718411444977,-1946.67,0.0002219,3]
[329517131,1718411444988,-500.0,0.0002219,3]
[329517132,1718411445020,-500.0,0.0002219,3]
[329517133,1718411445033,-500.0,0.0002219,3]
[329517134,1718411445076,-500.0,0.0002219,3]
[329517135,1718411445098,-500.0,0.0002219,3]
[329517136,1718411445126,-500.0,0.0002219,3]
[329517137,1718411445136,-500.0,0.0002219,3]
[329517138,1718411445154,-585.54,0.0002219,3]
[329517139,1718411445193,-500.0,0.0002219,3]
[329517140,1718411445218,-500.0,0.0002219,3]
[329517141,1718411445253,-500.0,0.0002219,3]
[329517142,1718411445281,-500.0,0.0002219,3]
[329517143,1718411445296,-500.0,0.0002219,3]
[329517144,1718411445307,-1778.21,0.0002219,3]
[329517145,1718411445360,-500.0,0.0002219,3]
[329517146,1718411445372,-845.74,0.0002219,3]
[329517147,1718411445433,-500.0,0.0002219,3]
[329517148,1718411445468,-500.0,0.0002219,3]
[329517149,1718411445498,-500.0,0.0002219,3]
[329517150,1718411445520,-500.0,0.0002219,3]
[329517151,1718411445537,-500.0,0.0002219,3]
[329517154,1718411445561,-500.0,0.0002219,3]
[329517158,1718411445605,-500.0,0.0002219,3]
[329517159,1718411445617,-500.0,0.0002219,3]
[329517160,1718411445629,-734.82,0.0002219,3]
[329517161,1718411445657,-500.0,0.0002219,3]
[329517162,1718411445712,-500.0,0.0002219,3]
[329517163,1718411445723,-500.0,0.0002219,3]
[329517164,1718411445788,-500.0,0.0002219,3]
[329517165,1718411445826,-500.0,0.0002219,3]
[329517166,1718411445843,-500.0,0.0002219,3]
[329517167,1718411445880,-500.0,0.0002219,3]
[329517168,1718411445911,-500.0,0.0002219,3]
[329517169,1718411445949,-500.0,0.0002219,3]
[329517170,1718411445960,-500.0,0.0002219,3]
[329517171,1718411445970,-500.0,0.0002219,3]
[329517172,1718411445981,-500.0,0.0002219,3]
[329517173,1718411446001,-500.0,0.0002219,3]
[329517174,1718411446013,-500.0,0.0002219,3]
[329517175,1718411446024,-500.0,0.0002219,3]
[329517176,1718411446065,-500.0,0.0002219,3]
[329517177,1718411446100,-500.0,0.0002219,3]
[329517178,1718411446141,-520.63,0.0002219,3]
[329517179,1718411446172,-575.89,0.0002219,3]
[329517180,1718411446201,-500.0,0.0002219,3]
[329517181,1718411446249,-500.0,0.0002219,3]
[329517182,1718411446262,-500.0,0.0002219,3]
[329517183,1718411446286,-500.0,0.0002219,3]
[329517184,1718411446304,-500.0,0.0002219,3]
[329517185,1718411446329,-500.0,0.0002219,3]
[329517186,1718411446352,-500.0,0.0002219,3]
[329517187,1718411446386,-500.0,0.0002219,3]
[329517188,1718411446402,-1207.43,0.0002219,3]
[329517189,1718411446420,-546.87,0.0002219,3]
[329517190,1718411446492,-1771.09,0.0002219,3]
[329517191,1718411446503,-500.0,0.0002219,3]
[329517192,1718411446530,-500.0,0.0002219,3]
[329517193,1718411446550,-500.0,0.0002219,3]
[329517194,1718411446579,-500.0,0.0002219,3]
[329517195,1718411446591,-500.0,0.0002219,3]
[329517196,1718411446603,-623.9,0.0002219,3]
[329517197,1718411446634,-500.0,0.0002219,3]
[329517198,1718411446665,-500.0,0.0002219,3]
[329517199,1718411446690,-500.0,0.0002219,3]
[329517200,1718411446709,-500.0,0.0002219,3]
[329517201,1718411446721,-500.0,0.0002219,3]
[329517202,1718411446735,-500.0,0.0002219,3]
[329517203,1718411446759,-500.0,0.0002219,3]
[329517204,1718411446794,-1407.18,0.0002219,3]
[329517205,1718411446809,-369.98,0.0002219,3]
[329517206,1718411446860,-500.0,0.0002219,3]
[329517207,1718411446874,-500.0,0.00022191,3]
[329517208,1718411446902,-273.30285909,0.00022191,3]
[329517209,1718411446916,-500.0,0.00022191,3]
[329517210,1718411446935,-500.0,0.00022191,3]
[329517211,1718411446950,-500.0,0.00022191,3]
[329517212,1718411446970,-500.0,0.00022191,3]
[329517213,1718411446990,-500.0,0.00022191,3]
[329517214,1718411447006,-500.0,0.00022191,3]
[329517215,1718411447040,-562.9,0.00022191,3]
[329517216,1718411447076,-500.0,0.00022191,3]
[329517217,1718411447087,-644.0150528,0.00022191,3]
[329517218,1718411447099,-500.0,0.00022191,3]
[329517219,1718411447110,-500.0,0.00022191,3]
[329517220,1718411447122,-500.0,0.00022191,3]
[329517221,1718411447133,-500.0,0.00022191,3]
[329517222,1718411447145,-508.32217614,0.00022191,3]
[329517223,1718411447156,-500.0,0.00022191,3]
[329517224,1718411447181,-500.0,0.00022191,3]
[329517225,1718411447194,-498.34,0.00022191,3]
[329517226,1718411447211,-448.66,0.00022191,3]
[329517227,1718411447237,-501.57515113,0.00022191,3]
[329517228,1718411447251,-500.0,0.00022191,3]
[329517229,1718411447280,-500.0,0.00022191,3]
[329517230,1718411447309,-500.0,0.00022191,3]
[329517231,1718411447337,-500.0,0.00022191,3]
[329517232,1718411447349,-607.94,0.00022191,3]
[329517233,1718411447381,-507.31800881,0.00022191,3]
[329517234,1718411447418,-267.25,0.00022191,3]
[329517235,1718411447444,-500.0,0.00022191,3]
[329517236,1718411447459,-500.0,0.00022191,3]
[329517237,1718411447471,-500.0,0.00022191,3]
[329517238,1718411447526,-500.0,0.00022191,3]
[329517239,1718411447546,-500.0,0.00022191,3]
[329517240,1718411447559,-500.0,0.00022191,3]
[329517241,1718411447585,-500.0,0.00022191,3]
[329517242,1718411447602,-500.0,0.00022191,3]
[329517243,1718411447630,-500.0,0.00022191,3]
[329517244,1718411447657,-616.07703964,0.00022191,3]
[329517245,1718411447668,-500.0,0.00022191,3]
[329517246,1718411447695,-500.0,0.00022191,3]
[329517247,1718411447713,-500.0,0.00022191,3]
[329517248,1718411447729,-500.0,0.00022191,3]
[329517249,1718411447742,-329.3,0.00022191,3]
[329517250,1718411447756,-500.0,0.00022191,3]
[329517251,1718411447777,-288.33,0.00022191,3]
[329517252,1718411447812,-440.17,0.00022191,3]
[329517253,1718411447823,-500.0,0.00022191,3]
[329517254,1718411447858,-500.0,0.00022191,3]
[329517255,1718411447892,-500.0,0.00022191,3]
[329517256,1718411447937,-500.0,0.00022191,3]
[329517259,1718411447980,-500.0,0.00022191,3]
[329517262,1718411448041,-500.0,0.00022191,3]
[329517263,1718411448064,-500.0,0.00022191,3]
[329517264,1718411448076,-500.0,0.00022191,3]
[329517265,1718411448126,-500.0,0.00022191,3]
[329517266,1718411448244,-580.17,0.00022191,3]
[329517267,1718411448268,-500.0,0.00022191,3]
[329517268,1718411448289,-500.0,0.00022191,3]
[329517269,1718411448301,-530.66,0.00022191,3]
[329517270,1718411448319,-500.0,0.00022191,3]
[329517271,1718411448348,-500.0,0.00022191,3]
[329517272,1718411448359,-500.0,0.00022191,3]
[329517273,1718411448387,-500.0,0.00022191,3]
[329517274,1718411448416,-500.0,0.00022191,3]
[329517275,1718411448445,-500.0,0.00022191,3]
[329517276,1718411448461,-500.0,0.00022191,3]
[329517277,1718411448474,-500.0,0.00022191,3]
[329517278,1718411448497,-500.0,0.00022191,3]
[329517279,1718411448510,-500.0,0.00022191,3]
[329517280,1718411448527,-500.0,0.00022191,3]
[329517281,1718411448548,-500.0,0.00022191,3]
[329517282,1718411448560,-500.0,0.00022191,3]
[329517283,1718411448574,-500.0,0.00022191,3]
[329517284,1718411448586,-500.0,0.00022191,3]
[329517285,1718411448615,-500.0,0.00022191,3]
[329517286,1718411448626,-500.0,0.00022191,3]
[329517287,1718411448640,-2280.0,0.000224,5]
[329517288,1718411448657,-5964.37177148,0.00022454,3]
[329517289,1718411448683,-215.05,0.00022454,2]
[329517290,1718411448726,-7455.46471435,0.00022455,3]
[329517291,1718411448752,-215.05,0.00022455,2]
[329517292,1718411448766,-198.78303924,0.00022463,2]
[329517293,1718411448800,-293.89652463,0.00022463,3]
[329517294,1718411448826,-500.0,0.00022463,3]
[329517295,1718411448857,-500.0,0.00022463,3]
[329517296,1718411448869,-667.66,0.00022463,3]
[329517297,1718411448896,-523.21,0.00022463,3]
[329517298,1718411448920,-540.91,0.00022463,3]
[329517299,1718411448933,-500.0,0.00022463,3]
[329517300,1718411448993,-500.0,0.00022463,3]
[329517301,1718411449006,-500.0,0.00022463,3]
[329517302,1718411449035,-500.0,0.00022463,3]
[329517303,1718411449046,-500.0,0.00022463,3]
[329517304,1718411449072,-500.0,0.00022463,3]
[329517305,1718411449117,-500.0,0.00022463,3]
[329517306,1718411449153,-500.0,0.00022463,3]
[329517307,1718411449169,-1910.31,0.00022463,3]
[329517308,1718411449181,-500.0,0.00022463,3]
[329517309,1718411449193,-500.0,0.00022463,3]
[329517310,1718411449233,-500.0,0.00022463,3]
[329517311,1718411449254,-1441.02,0.00022463,3]
[329517312,1718411449276,-500.0,0.00022463,3]
[329517313,1718411449293,-500.0,0.00022463,3]
[329517314,1718411449307,-615.96,0.00022463,3]
[329517315,1718411449334,-500.0,0.00022464,3]
[329517316,1718411449372,-570.83,0.00022464,3]
[329517317,1718411449397,-500.0,0.00022464,3]
[329517318,1718411449422,-337.74,0.00022464,3]
[329517319,1718411449438,-548.17,0.00022464,3]
[329517320,1718411449450,-500.0,0.00022464,3]
[329517321,1718411449468,-500.0,0.00022464,3]
[329517322,1718411449498,-500.0,0.00022464,3]
[329517323,1718411449520,-500.0,0.00022464,3]
[329517324,1718411449538,-500.0,0.00022464,3]
[329517325,1718411449552,-500.0,0.00022464,3]
[329517326,1718411449604,-500.0,0.00022464,3]
[329517327,1718411449615,-500.0,0.00022464,3]
[329517328,1718411449640,-500.0,0.00022464,3]
[329517329,1718411449685,-500.0,0.00022464,3]
[329517330,1718411449702,-500.0,0.00022464,3]
[329517331,1718411449720,-500.0,0.00022464,3]
[329517332,1718411449792,-500.0,0.00022464,3]
[329517333,1718411449840,-1946.67,0.00022464,3]
[329517334,1718411449854,-500.0,0.00022464,3]
[329517335,1718411449869,-500.0,0.00022464,3]
[329517336,1718411449885,-500.0,0.00022464,3]
[329517337,1718411449898,-500.0,0.00022464,3]
[329517338,1718411449939,-500.0,0.00022464,3]
[329517339,1718411449951,-500.0,0.00022464,3]
[329517340,1718411449966,-585.54,0.00022464,3]
[329517341,1718411449981,-500.0,0.00022464,3]
[329517342,1718411450009,-500.0,0.00022464,3]
[329517343,1718411450054,-500.0,0.00022464,3]
[329517344,1718411450066,-500.0,0.00022464,3]
[329517345,1718411450085,-500.0,0.00022464,3]
[329517346,1718411450099,-500.0,0.00022464,3]
[329517347,1718411450113,-1778.21,0.00022464,3]
[329517348,1718411450127,-845.74,0.00022464,3]
[329517349,1718411450181,-500.0,0.00022464,3]
[329517350,1718411450231,-500.0,0.00022464,3]
[329517351,1718411450256,-500.0,0.00022464,3]
[329517352,1718411450268,-500.0,0.00022464,3]
[329517353,1718411450293,-500.0,0.00022464,3]
[329517354,1718411450308,-500.0,0.00022464,3]
[329517355,1718411450319,-500.0,0.00022464,3]
[329517356,1718411450333,-734.82,0.00022464,3]
[329517357,1718411450348,-500.0,0.00022464,3]
[329517358,1718411450378,-400.18546041,0.00022464,3]
[329517359,1718411450409,-500.0,0.00022464,3]
[329517360,1718411450420,-500.0,0.00022464,3]
[329517361,1718411450433,-500.0,0.00022464,3]
[329517362,1718411450444,-500.0,0.00022464,3]
[329517363,1718411450458,-500.0,0.00022464,3]
[329517364,1718411450470,-500.0,0.00022464,3]
[329517365,1718411450483,-500.0,0.00022464,3]
[329517366,1718411450494,-500.0,0.00022464,3]
[329517367,1718411450511,-500.0,0.00022464,3]
[329517368,1718411450537,-500.0,0.00022464,3]
[329517369,1718411450551,-500.0,0.00022464,3]
[329517371,1718411450565,-500.0,0.00022464,3]
[329517373,1718411450579,-500.0,0.00022464,3]
[329517375,1718411450598,-500.0,0.00022464,3]
[329517377,1718411450617,-500.0,0.00022464,3]
[329517379,1718411450647,-520.63,0.00022464,3]
[329517381,1718411450669,-575.89,0.00022464,3]
[329517382,1718411450683,-305.2115726,0.00022464,3]
[329517384,1718411450753,-500.0,0.00022464,3]
[329517386,1718411450794,-500.0,0.00022464,3]
[329517389,1718411450830,-500.0,0.00022464,3]
[329517390,1718411450847,-500.0,0.00022464,3]
[329517393,1718411450880,-500.0,0.00022464,3]
[329517395,1718411450939,-500.0,0.00022464,3]
[329517397,1718411450972,-500.0,0.00022464,3]
[329517399,1718411450998,-546.87,0.00022464,3]
[329517401,1718411451011,-1207.43,0.00022464,3]
[329517403,1718411451027,-1771.09,0.00022464,3]
[329517405,1718411451056,-500.0,0.00022464,3]
[329517407,1718411451068,-500.0,0.00022464,3]
[329517408,1718411451096,-500.0,0.00022464,3]
[329517409,1718411451109,-500.0,0.00022464,3]
[329517412,1718411451137,-500.0,0.00022464,3]
[329517414,1718411451149,-623.9,0.00022464,3]
[329517416,1718411451161,-500.0,0.00022464,3]
[329517418,1718411451172,-500.0,0.00022464,3]
[329517420,1718411451183,-500.0,0.00022464,3]
[329517422,1718411451195,-500.0,0.00022464,3]
[329517424,1718411451221,-500.0,0.00022464,3]
[329517426,1718411451233,-538.62,0.00022464,3]
[329517428,1718411451244,-500.0,0.00022464,3]
[329517430,1718411451256,-1407.18,0.00022464,3]
[329517432,1718411451273,-500.0,0.00022464,3]
[329517433,1718411451294,-510.4,0.00022465,3]
[329517435,1718411451329,-500.0,0.00022465,3]
[329517437,1718411451350,-596.13,0.00022465,3]
[329517438,1718411451361,-500.0,0.00022465,3]
[329517440,1718411451387,-500.0,0.00022465,3]
[329517442,1718411451410,-500.0,0.00022465,3]
[329517443,1718411451427,-500.0,0.00022465,3]
[329517444,1718411451438,-244.52,0.00022465,3]
[329517445,1718411451466,-500.0,0.00022465,3]
[329517446,1718411451481,-248.12,0.00022465,3]
[329517447,1718411451493,-500.0,0.00022465,3]
[329517448,1718411451507,-500.0,0.00022465,3]
[329517449,1718411451523,-500.0,0.00022465,3]
[329517450,1718411451546,-289.57,0.00022465,3]
[329517451,1718411451558,-500.0,0.00022465,3]
[329517452,1718411451570,-500.0,0.00022465,3]
[329517453,1718411451583,-500.0,0.00022465,3]
[329517454,1718411451598,-500.0,0.00022465,3]
[329517455,1718411451636,-410.45,0.00022465,3]
[329517456,1718411451655,-570.67,0.00022465,3]
[329517457,1718411451702,-430.4,0.00022465,3]
[329517458,1718411451736,-362.31,0.00022465,3]
[329517459,1718411451750,-500.0,0.00022465,3]
[329517460,1718411451789,-500.0,0.00022465,3]
[329517461,1718411451812,-514.74,0.00022465,3]
[329517462,1718411451825,-286.68,0.00022465,3]
[329517463,1718411451858,-500.0,0.00022465,3]
[329517464,1718411451927,-463.90497925,0.00022465,3]
[329517465,1718411451953,-551.86,0.00022465,3]
[329517466,1718411451980,-396.71,0.00022465,3]
[329517467,1718411452007,-500.0,0.00022465,3]
[329517468,1718411452020,-574.31,0.00022465,3]
[329517469,1718411452048,-500.0,0.00022465,3]
[329517470,1718411452090,-500.0,0.00022465,3]
[329517471,1718411452102,-500.0,0.00022465,3]
[329517472,1718411452115,-500.0,0.00022465,3]
[329517473,1718411452151,-500.0,0.00022465,3]
[329517474,1718411452197,-500.0,0.00022465,3]
[329517475,1718411452226,-500.0,0.00022465,3]
[329517476,1718411452242,-500.0,0.00022465,3]
[329517477,1718411452284,-500.0,0.00022465,3]
[329517478,1718411452296,-500.0,0.00022465,3]
[329517480,1718411452346,-379.64,0.00022465,3]
[329517482,1718411452368,-500.0,0.00022465,3]
[329517484,1718411452431,-234.11753683,0.00022465,3]
[329517486,1718411452442,-500.0,0.00022465,3]
[329517487,1718411452457,-1491.09294287,0.00022719,3]
[329517490,1718411452504,-1284.45082698,0.00022728,3]
[329517491,1718411452685,-868.26928846,0.00022728,3]
[329517492,1718411452714,-2625.31380456,0.00022728,3]
[329517493,1718411452738,-257.82237684,0.00022728,3]
[329517494,1718411452775,-2419.60841751,0.00022728,3]
[329517495,1718411452789,-3766.37445841,0.00022729,3]
[329517496,1718411452809,-706.9043702,0.00022729,3]
[329517497,1718411452829,-138.67045577,0.00022737,3]
[329517498,1718411452849,-86.23505065,0.00022737,3]
[329517499,1718411452861,-485.26250574,0.00022737,3]
[329517500,1718411452874,-330.65507679,0.00022737,3]
[329517501,1718411452893,-337.00492321,0.00022737,3]
[329517502,1718411452906,-523.21,0.00022737,3]
[329517503,1718411452919,-136.51642649,0.00022737,3]
[329517504,1718411452935,-404.39357351,0.00022737,3]
[329517505,1718411452973,-400.0,0.00022737,3]
[329517506,1718411453029,-500.0,0.00022737,3]
[329517507,1718411453048,-644.18,0.00022737,3]
[329517508,1718411453062,-500.0,0.00022737,3]
[329517509,1718411453078,-500.0,0.00022737,3]
[329517510,1718411453094,-500.0,0.00022737,3]
[329517511,1718411453114,-500.0,0.00022737,3]
[329517512,1718411453144,-500.0,0.00022737,3]
[329517513,1718411453162,-1910.31,0.00022737,3]
[329517514,1718411453183,-500.0,0.00022737,3]
[329517515,1718411453224,-500.0,0.00022737,3]
[329517516,1718411453265,-500.0,0.00022737,3]
[329517517,1718411453302,-1441.02,0.00022737,3]
[329517518,1718411453364,-500.0,0.00022737,3]
[329517519,1718411453389,-500.0,0.00022737,3]
[329517520,1718411453430,-228.17,0.00022738,3]
[329517521,1718411453478,-376.84,0.00022738,3]
[329517522,1718411453499,-548.17,0.00022738,3]
[329517523,1718411453600,-500.0,0.00022738,3]
[329517524,1718411453612,-313.13609827,0.00022738,3]
[329517525,1718411453641,-186.86390173,0.00022738,3]
[329517526,1718411453674,-500.0,0.00022738,3]
[329517527,1718411453703,-500.0,0.00022738,3]
[329517528,1718411453719,-500.0,0.00022738,3]
[329517529,1718411453769,-40.07735131,0.00022738,3]
[329517530,1718411454247,-546.30264869,0.00022738,3]
[329517531,1718411454316,-500.0,0.00022738,3]
[329517532,1718411454333,-500.0,0.00022738,3]
[329517533,1718411454364,-446.13473938,0.00022738,3]
[329517534,1718411454375,-500.0,0.00022738,3]
[329517535,1718411454422,-500.0,0.00022738,3]
[329517536,1718411454442,-500.0,0.00022738,3]
[329517537,1718411454457,-500.0,0.00022738,3]
[329517538,1718411454487,-1946.67,0.00022738,3]
[329517539,1718411454512,-500.0,0.00022738,3]
[329517540,1718411454532,-500.0,0.00022738,3]
[329517541,1718411454545,-351.58485691,0.00022738,3]
[329517542,1718411454569,-500.0,0.00022738,3]
[329517543,1718411454582,-500.0,0.00022738,3]
[329517544,1718411454596,-500.0,0.00022738,3]
[329517545,1718411454611,-585.54,0.00022738,3]
[329517546,1718411454625,-500.0,0.00022738,3]
[329517547,1718411454725,-500.0,0.00022738,3]
[329517548,1718411454760,-500.0,0.00022738,3]
[329517549,1718411454782,-500.0,0.00022738,3]
[329517550,1718411454841,-500.0,0.00022738,3]
[329517551,1718411454866,-500.0,0.00022738,3]
[329517552,1718411454879,-845.74,0.00022738,3]
[329517553,1718411454912,-500.0,0.00022738,3]
[329517554,1718411454935,-500.0,0.00022738,3]
[329517555,1718411454955,-500.0,0.00022738,3]
[329517556,1718411454976,-500.0,0.00022738,3]
[329517557,1718411454988,-500.0,0.00022738,3]
[329517558,1718411455004,-500.0,0.00022738,3]
[329517559,1718411455022,-500.0,0.00022738,3]
[329517560,1718411455052,-734.82,0.00022738,3]
[329517561,1718411455063,-500.0,0.00022738,3]
[329517562,1718411455075,-500.0,0.00022738,3]
[329517563,1718411455089,-500.0,0.00022738,3]
[329517564,1718411455118,-500.0,0.00022738,3]
[329517565,1718411455131,-500.0,0.00022738,3]
[329517566,1718411455156,-380.29361979,0.00022738,3]
[329517567,1718411455181,-500.0,0.00022738,3]
[329517568,1718411455214,-500.0,0.00022738,3]
[329517569,1718411455229,-500.0,0.00022738,3]
[329517570,1718411455244,-500.0,0.00022738,3]
[329517571,1718411455257,-500.0,0.00022738,3]
[329517572,1718411455269,-500.0,0.00022738,3]
[329517573,1718411455290,-500.0,0.00022738,3]
[329517574,1718411455304,-500.0,0.00022738,3]
[329517575,1718411455332,-500.0,0.00022738,3]